Workbook

Sheet HOUSE
B1: 房屋貸款 - 本金平均攤還法
B2: 本金平均攤還法便是將本金平均在貸款期間內償還完畢！ 因此，每期償還的本金是一樣的，另外，每期所攤還的利息還會自動根據未攤還之本金變少而隨時減少，因此，每期所攤還的本利和會越來越少。
A3: 房屋總坪數 : | B3: 35 | C3: 貸款比例 : | D3: 80% | E3: 貸款日(西元) | F3: 2000年 | G3: 12月
A4: 每坪單價 : | B4: $280,000元 | C4: 年利率 : | D4: 8.00% | E4: 貸款年限 | F4: 10年
A5: 其他成本 (如:停車位) | B5: $1,500,000元
A7: 房屋總價 : | B7: =B3*B4+B5 -> $11,300,000元 | C7: 自備款 : | D7: =B7*(1-D3) -> $2,260,000元 | E7: 每個月 償付本金 | F7: =D8/F4/12 -> $75,333元
C8: 貸款 : | D8: =B7*D3 -> $9,040,000元 | S8: =F3+F4 -> 2010年 | T8: =G3-1 -> 11月 | U8: =IF(T8=0,F3+F4-1,F3+F4) -> 2010 | V8: =IF(T8=0,12,T8) -> 11
A9: ="根據計算您將於第 "&FIXED(S9,0)&"期，也就是西元"&FIXED(U8,0)&"年"&FIXED(V8,0)&"月還清所有貸款" -> 根據計算您將於第 120期，也就是西元2,010年11月還清所有貸款 | F9: =T9 -> 2010-11-01 | S9: =F4*12 -> 120 | T9: =DATEVALUE(U8&"/"&V8&"/"&1) -> 2010-11-01 | U9: =T9 -> 2010-11-01
A10: 期數 | B10: 日期 | C10: 尚未償還之 貸款金額 | D10: 償付本金 | E10: 償付利息 | F10: 累計 償還本金 | G10: 累計 償還利息 | T10: 年 | U10: 月
A11: 1 | B11: =IF(A11="","",IF(U11="","錯誤的日期",DATE(T11,U11,1))) -> 2000-12-01 | C11: =IF(A11="","",D8-D11) -> 8964667 | D11: =IF(A11="","",$F$7) -> 75333 | E11: =IF(A11="","",D8*D4/12) -> 60267 | F11: =IF(A11="","",D11) -> 75333 | G11: =IF(A11="","",E11) -> 60267 | T11: =F3 -> 2000 | U11: =IF(AND(G3>=1,G3<=12),G3,"") -> 12
A12: =IF(AND(A11<$F$4*12,A11<>""),A11+1,"") -> 2 | B12: 2001-01-01 | C12: =IF(A12="","",C11-D12) -> 8889333 | D12: 75333 | E12: =IF(A12="","",C11*$D$4/12) -> 59764 | F12: =IF(A12="","",F11+D12) -> 150667 | G12: =IF(A12="","",G11+E12) -> 120031 | T12: =IF(U11=12,T11+1,T11) -> 2001 | U12: =IF(U11=12,1,U11+1) -> 1
A13: 3 | B13: 2001-02-01 | C13: 8814000 | D13: 75333 | E13: 59262 | F13: 226000 | G13: 179293 | T13: 2001 | U13: 2
A14: 4 | B14: 2001-03-01 | C14: 8738667 | D14: 75333 | E14: 58760 | F14: 301333 | G14: 238053 | T14: 2001 | U14: 3
A15: 5 | B15: 2001-04-01 | C15: 8663333 | D15: 75333 | E15: 58258 | F15: 376667 | G15: 296311 | T15: 2001 | U15: 4
A16: 6 | B16: 2001-05-01 | C16: 8588000 | D16: 75333 | E16: 57756 | F16: 452000 | G16: 354067 | T16: 2001 | U16: 5
A17: 7 | B17: 2001-06-01 | C17: 8512667 | D17: 75333 | E17: 57253 | F17: 527333 | G17: 411320 | T17: 2001 | U17: 6
A18: 8 | B18: 2001-07-01 | C18: 8437333 | D18: 75333 | E18: 56751 | F18: 602667 | G18: 468071 | T18: 2001 | U18: 7
A19: 9 | B19: 2001-08-01 | C19: 8362000 | D19: 75333 | E19: 56249 | F19: 678000 | G19: 524320 | T19: 2001 | U19: 8
A20: 10 | B20: 2001-09-01 | C20: 8286667 | D20: 75333 | E20: 55747 | F20: 753333 | G20: 580067 | T20: 2001 | U20: 9
A21: 11 | B21: 2001-10-01 | C21: 8211333 | D21: 75333 | E21: 55244 | F21: 828667 | G21: 635311 | T21: 2001 | U21: 10
A22: 12 | B22: 2001-11-01 | C22: 8136000 | D22: 75333 | E22: 54742 | F22: 904000 | G22: 690053 | T22: 2001 | U22: 11
A23: 13 | B23: 2001-12-01 | C23: 8060667 | D23: 75333 | E23: 54240 | F23: 979333 | G23: 744293 | T23: 2001 | U23: 12
A24: 14 | B24: 2002-01-01 | C24: 7985333 | D24: 75333 | E24: 53738 | F24: 1054667 | G24: 798031 | T24: 2002 | U24: 1
A25: 15 | B25: 2002-02-01 | C25: 7910000 | D25: 75333 | E25: 53236 | F25: 1130000 | G25: 851267 | T25: 2002 | U25: 2
A26: 16 | B26: 2002-03-01 | C26: 7834667 | D26: 75333 | E26: 52733 | F26: 1205333 | G26: 904000 | T26: 2002 | U26: 3
A27: 17 | B27: 2002-04-01 | C27: 7759333 | D27: 75333 | E27: 52231 | F27: 1280667 | G27: 956231 | T27: 2002 | U27: 4
A28: 18 | B28: 2002-05-01 | C28: 7684000 | D28: 75333 | E28: 51729 | F28: 1356000 | G28: 1007960 | T28: 2002 | U28: 5
A29: 19 | B29: 2002-06-01 | C29: 7608667 | D29: 75333 | E29: 51227 | F29: 1431333 | G29: 1059187 | T29: 2002 | U29: 6
A30: 20 | B30: 2002-07-01 | C30: 7533333 | D30: 75333 | E30: 50724 | F30: 1506667 | G30: 1109911 | T30: 2002 | U30: 7
A31: 21 | B31: 2002-08-01 | C31: 7458000 | D31: 75333 | E31: 50222 | F31: 1582000 | G31: 1160133 | T31: 2002 | U31: 8
A32: 22 | B32: 2002-09-01 | C32: 7382667 | D32: 75333 | E32: 49720 | F32: 1657333 | G32: 1209853 | T32: 2002 | U32: 9
A33: 23 | B33: 2002-10-01 | C33: 7307333 | D33: 75333 | E33: 49218 | F33: 1732667 | G33: 1259071 | T33: 2002 | U33: 10
A34: 24 | B34: 2002-11-01 | C34: 7232000 | D34: 75333 | E34: 48716 | F34: 1808000 | G34: 1307787 | T34: 2002 | U34: 11
A35: 25 | B35: 2002-12-01 | C35: 7156667 | D35: 75333 | E35: 48213 | F35: 1883333 | G35: 1356000 | T35: 2002 | U35: 12
A36: 26 | B36: 2003-01-01 | C36: 7081333 | D36: 75333 | E36: 47711 | F36: 1958667 | G36: 1403711 | T36: 2003 | U36: 1
A37: 27 | B37: 2003-02-01 | C37: 7006000 | D37: 75333 | E37: 47209 | F37: 2034000 | G37: 1450920 | T37: 2003 | U37: 2
A38: 28 | B38: 2003-03-01 | C38: 6930667 | D38: 75333 | E38: 46707 | F38: 2109333 | G38: 1497627 | T38: 2003 | U38: 3
A39: 29 | B39: 2003-04-01 | C39: 6855333 | D39: 75333 | E39: 46204 | F39: 2184667 | G39: 1543831 | T39: 2003 | U39: 4
A40: 30 | B40: 2003-05-01 | C40: 6780000 | D40: 75333 | E40: 45702 | F40: 2260000 | G40: 1589533 | T40: 2003 | U40: 5
A41: 31 | B41: 2003-06-01 | C41: 6704667 | D41: 75333 | E41: 45200 | F41: 2335333 | G41: 1634733 | T41: 2003 | U41: 6
A42: 32 | B42: 2003-07-01 | C42: 6629333 | D42: 75333 | E42: 44698 | F42: 2410667 | G42: 1679431 | T42: 2003 | U42: 7
A43: 33 | B43: 2003-08-01 | C43: 6554000 | D43: 75333 | E43: 44196 | F43: 2486000 | G43: 1723627 | T43: 2003 | U43: 8
A44: 34 | B44: 2003-09-01 | C44: 6478667 | D44: 75333 | E44: 43693 | F44: 2561333 | G44: 1767320 | T44: 2003 | U44: 9
A45: 35 | B45: 2003-10-01 | C45: 6403333 | D45: 75333 | E45: 43191 | F45: 2636667 | G45: 1810511 | T45: 2003 | U45: 10
A46: 36 | B46: 2003-11-01 | C46: 6328000 | D46: 75333 | E46: 42689 | F46: 2712000 | G46: 1853200 | T46: 2003 | U46: 11
A47: 37 | B47: 2003-12-01 | C47: 6252667 | D47: 75333 | E47: 42187 | F47: 2787333 | G47: 1895387 | T47: 2003 | U47: 12
A48: 38 | B48: 2004-01-01 | C48: 6177333 | D48: 75333 | E48: 41684 | F48: 2862667 | G48: 1937071 | T48: 2004 | U48: 1
A49: 39 | B49: 2004-02-01 | C49: 6102000 | D49: 75333 | E49: 41182 | F49: 2938000 | G49: 1978253 | T49: 2004 | U49: 2
A50: 40 | B50: 2004-03-01 | C50: 6026667 | D50: 75333 | E50: 40680 | F50: 3013333 | G50: 2018933 | T50: 2004 | U50: 3
A51: 41 | B51: 2004-04-01 | C51: 5951333 | D51: 75333 | E51: 40178 | F51: 3088667 | G51: 2059111 | T51: 2004 | U51: 4
A52: 42 | B52: 2004-05-01 | C52: 5876000 | D52: 75333 | E52: 39676 | F52: 3164000 | G52: 2098787 | T52: 2004 | U52: 5
A53: 43 | B53: 2004-06-01 | C53: 5800667 | D53: 75333 | E53: 39173 | F53: 3239333 | G53: 2137960 | T53: 2004 | U53: 6
A54: 44 | B54: 2004-07-01 | C54: 5725333 | D54: 75333 | E54: 38671 | F54: 3314667 | G54: 2176631 | T54: 2004 | U54: 7
A55: 45 | B55: 2004-08-01 | C55: 5650000 | D55: 75333 | E55: 38169 | F55: 3390000 | G55: 2214800 | T55: 2004 | U55: 8
A56: 46 | B56: 2004-09-01 | C56: 5574667 | D56: 75333 | E56: 37667 | F56: 3465333 | G56: 2252467 | T56: 2004 | U56: 9
A57: 47 | B57: 2004-10-01 | C57: 5499333 | D57: 75333 | E57: 37164 | F57: 3540667 | G57: 2289631 | T57: 2004 | U57: 10
A58: 48 | B58: 2004-11-01 | C58: 5424000 | D58: 75333 | E58: 36662 | F58: 3616000 | G58: 2326293 | T58: 2004 | U58: 11
A59: 49 | B59: 2004-12-01 | C59: 5348667 | D59: 75333 | E59: 36160 | F59: 3691333 | G59: 2362453 | T59: 2004 | U59: 12
A60: 50 | B60: 2005-01-01 | C60: 5273333 | D60: 75333 | E60: 35658 | F60: 3766667 | G60: 2398111 | T60: 2005 | U60: 1
A61: 51 | B61: 2005-02-01 | C61: 5198000 | D61: 75333 | E61: 35156 | F61: 3842000 | G61: 2433267 | T61: 2005 | U61: 2
A62: 52 | B62: 2005-03-01 | C62: 5122667 | D62: 75333 | E62: 34653 | F62: 3917333 | G62: 2467920 | T62: 2005 | U62: 3
A63: 53 | B63: 2005-04-01 | C63: 5047333 | D63: 75333 | E63: 34151 | F63: 3992667 | G63: 2502071 | T63: 2005 | U63: 4
A64: 54 | B64: 2005-05-01 | C64: 4972000 | D64: 75333 | E64: 33649 | F64: 4068000 | G64: 2535720 | T64: 2005 | U64: 5
A65: 55 | B65: 2005-06-01 | C65: 4896667 | D65: 75333 | E65: 33147 | F65: 4143333 | G65: 2568867 | T65: 2005 | U65: 6
A66: 56 | B66: 2005-07-01 | C66: 4821333 | D66: 75333 | E66: 32644 | F66: 4218667 | G66: 2601511 | T66: 2005 | U66: 7
A67: 57 | B67: 2005-08-01 | C67: 4746000 | D67: 75333 | E67: 32142 | F67: 4294000 | G67: 2633653 | T67: 2005 | U67: 8
A68: 58 | B68: 2005-09-01 | C68: 4670667 | D68: 75333 | E68: 31640 | F68: 4369333 | G68: 2665293 | T68: 2005 | U68: 9
A69: 59 | B69: 2005-10-01 | C69: 4595333 | D69: 75333 | E69: 31138 | F69: 4444667 | G69: 2696431 | T69: 2005 | U69: 10
A70: 60 | B70: 2005-11-01 | C70: 4520000 | D70: 75333 | E70: 30636 | F70: 4520000 | G70: 2727067 | T70: 2005 | U70: 11
A71: 61 | B71: 2005-12-01 | C71: 4444667 | D71: 75333 | E71: 30133 | F71: 4595333 | G71: 2757200 | T71: 2005 | U71: 12
A72: 62 | B72: 2006-01-01 | C72: 4369333 | D72: 75333 | E72: 29631 | F72: 4670667 | G72: 2786831 | T72: 2006 | U72: 1
A73: 63 | B73: 2006-02-01 | C73: 4294000 | D73: 75333 | E73: 29129 | F73: 4746000 | G73: 2815960 | T73: 2006 | U73: 2
A74: 64 | B74: 2006-03-01 | C74: 4218667 | D74: 75333 | E74: 28627 | F74: 4821333 | G74: 2844587 | T74: 2006 | U74: 3
A75: 65 | B75: =IF(A75="","",IF(U75="","錯誤的日期",DATE(T75,U75,1))) -> 2006-04-01 | C75: 4143333 | D75: =IF(A75="","",$F$7) -> 75333 | E75: 28124 | F75: 4896667 | G75: 2872711 | T75: 2006 | U75: 4
A76: =IF(AND(A75<$F$4*12,A75<>""),A75+1,"") -> 66 | B76: 2006-05-01 | C76: =IF(A76="","",C75-D76) -> 4068000 | D76: 75333 | E76: =IF(A76="","",C75*$D$4/12) -> 27622 | F76: =IF(A76="","",F75+D76) -> 4972000 | G76: =IF(A76="","",G75+E76) -> 2900333 | T76: =IF(U75=12,T75+1,T75) -> 2006 | U76: =IF(U75=12,1,U75+1) -> 5
A77: 67 | B77: 2006-06-01 | C77: 3992667 | D77: 75333 | E77: 27120 | F77: 5047333 | G77: 2927453 | T77: 2006 | U77: 6
A78: 68 | B78: 2006-07-01 | C78: 3917333 | D78: 75333 | E78: 26618 | F78: 5122667 | G78: 2954071 | T78: 2006 | U78: 7
A79: 69 | B79: 2006-08-01 | C79: 3842000 | D79: 75333 | E79: 26116 | F79: 5198000 | G79: 2980187 | T79: 2006 | U79: 8
A80: 70 | B80: 2006-09-01 | C80: 3766667 | D80: 75333 | E80: 25613 | F80: 5273333 | G80: 3005800 | T80: 2006 | U80: 9
A81: 71 | B81: 2006-10-01 | C81: 3691333 | D81: 75333 | E81: 25111 | F81: 5348667 | G81: 3030911 | T81: 2006 | U81: 10
A82: 72 | B82: 2006-11-01 | C82: 3616000 | D82: 75333 | E82: 24609 | F82: 5424000 | G82: 3055520 | T82: 2006 | U82: 11
A83: 73 | B83: 2006-12-01 | C83: 3540667 | D83: 75333 | E83: 24107 | F83: 5499333 | G83: 3079627 | T83: 2006 | U83: 12
A84: 74 | B84: 2007-01-01 | C84: 3465333 | D84: 75333 | E84: 23604 | F84: 5574667 | G84: 3103231 | T84: 2007 | U84: 1
A85: 75 | B85: 2007-02-01 | C85: 3390000 | D85: 75333 | E85: 23102 | F85: 5650000 | G85: 3126333 | T85: 2007 | U85: 2
A86: 76 | B86: 2007-03-01 | C86: 3314667 | D86: 75333 | E86: 22600 | F86: 5725333 | G86: 3148933 | T86: 2007 | U86: 3
A87: 77 | B87: 2007-04-01 | C87: 3239333 | D87: 75333 | E87: 22098 | F87: 5800667 | G87: 3171031 | T87: 2007 | U87: 4
A88: 78 | B88: 2007-05-01 | C88: 3164000 | D88: 75333 | E88: 21596 | F88: 5876000 | G88: 3192627 | T88: 2007 | U88: 5
A89: 79 | B89: 2007-06-01 | C89: 3088667 | D89: 75333 | E89: 21093 | F89: 5951333 | G89: 3213720 | T89: 2007 | U89: 6
A90: 80 | B90: 2007-07-01 | C90: 3013333 | D90: 75333 | E90: 20591 | F90: 6026667 | G90: 3234311 | T90: 2007 | U90: 7
A91: 81 | B91: 2007-08-01 | C91: 2938000 | D91: 75333 | E91: 20089 | F91: 6102000 | G91: 3254400 | T91: 2007 | U91: 8
A92: 82 | B92: 2007-09-01 | C92: 2862667 | D92: 75333 | E92: 19587 | F92: 6177333 | G92: 3273987 | T92: 2007 | U92: 9
A93: 83 | B93: 2007-10-01 | C93: 2787333 | D93: 75333 | E93: 19084 | F93: 6252667 | G93: 3293071 | T93: 2007 | U93: 10
A94: 84 | B94: 2007-11-01 | C94: 2712000 | D94: 75333 | E94: 18582 | F94: 6328000 | G94: 3311653 | T94: 2007 | U94: 11
A95: 85 | B95: 2007-12-01 | C95: 2636667 | D95: 75333 | E95: 18080 | F95: 6403333 | G95: 3329733 | T95: 2007 | U95: 12
A96: 86 | B96: 2008-01-01 | C96: 2561333 | D96: 75333 | E96: 17578 | F96: 6478667 | G96: 3347311 | T96: 2008 | U96: 1
A97: 87 | B97: 2008-02-01 | C97: 2486000 | D97: 75333 | E97: 17076 | F97: 6554000 | G97: 3364387 | T97: 2008 | U97: 2
A98: 88 | B98: 2008-03-01 | C98: 2410667 | D98: 75333 | E98: 16573 | F98: 6629333 | G98: 3380960 | T98: 2008 | U98: 3
A99: 89 | B99: 2008-04-01 | C99: 2335333 | D99: 75333 | E99: 16071 | F99: 6704667 | G99: 3397031 | T99: 2008 | U99: 4
A100: 90 | B100: 2008-05-01 | C100: 2260000 | D100: 75333 | E100: 15569 | F100: 6780000 | G100: 3412600 | T100: 2008 | U100: 5
A101: 91 | B101: 2008-06-01 | C101: 2184667 | D101: 75333 | E101: 15067 | F101: 6855333 | G101: 3427667 | T101: 2008 | U101: 6
A102: 92 | B102: 2008-07-01 | C102: 2109333 | D102: 75333 | E102: 14564 | F102: 6930667 | G102: 3442231 | T102: 2008 | U102: 7
A103: 93 | B103: 2008-08-01 | C103: 2034000 | D103: 75333 | E103: 14062 | F103: 7006000 | G103: 3456293 | T103: 2008 | U103: 8
A104: 94 | B104: 2008-09-01 | C104: 1958667 | D104: 75333 | E104: 13560 | F104: 7081333 | G104: 3469853 | T104: 2008 | U104: 9
A105: 95 | B105: 2008-10-01 | C105: 1883333 | D105: 75333 | E105: 13058 | F105: 7156667 | G105: 3482911 | T105: 2008 | U105: 10
A106: 96 | B106: 2008-11-01 | C106: 1808000 | D106: 75333 | E106: 12556 | F106: 7232000 | G106: 3495467 | T106: 2008 | U106: 11
A107: 97 | B107: 2008-12-01 | C107: 1732667 | D107: 75333 | E107: 12053 | F107: 7307333 | G107: 3507520 | T107: 2008 | U107: 12
A108: 98 | B108: 2009-01-01 | C108: 1657333 | D108: 75333 | E108: 11551 | F108: 7382667 | G108: 3519071 | T108: 2009 | U108: 1
A109: 99 | B109: 2009-02-01 | C109: 1582000 | D109: 75333 | E109: 11049 | F109: 7458000 | G109: 3530120 | T109: 2009 | U109: 2
A110: 100 | B110: 2009-03-01 | C110: 1506667 | D110: 75333 | E110: 10547 | F110: 7533333 | G110: 3540667 | T110: 2009 | U110: 3
A111: 101 | B111: 2009-04-01 | C111: 1431333 | D111: 75333 | E111: 10044 | F111: 7608667 | G111: 3550711 | T111: 2009 | U111: 4
A112: 102 | B112: 2009-05-01 | C112: 1356000 | D112: 75333 | E112: 9542 | F112: 7684000 | G112: 3560253 | T112: 2009 | U112: 5
A113: 103 | B113: 2009-06-01 | C113: 1280667 | D113: 75333 | E113: 9040 | F113: 7759333 | G113: 3569293 | T113: 2009 | U113: 6
A114: 104 | B114: 2009-07-01 | C114: 1205333 | D114: 75333 | E114: 8538 | F114: 7834667 | G114: 3577831 | T114: 2009 | U114: 7
A115: 105 | B115: 2009-08-01 | C115: 1130000 | D115: 75333 | E115: 8036 | F115: 7910000 | G115: 3585867 | T115: 2009 | U115: 8
A116: 106 | B116: 2009-09-01 | C116: 1054667 | D116: 75333 | E116: 7533 | F116: 7985333 | G116: 3593400 | T116: 2009 | U116: 9
A117: 107 | B117: 2009-10-01 | C117: 979333 | D117: 75333 | E117: 7031 | F117: 8060667 | G117: 3600431 | T117: 2009 | U117: 10
A118: 108 | B118: 2009-11-01 | C118: 904000 | D118: 75333 | E118: 6529 | F118: 8136000 | G118: 3606960 | T118: 2009 | U118: 11
A119: 109 | B119: 2009-12-01 | C119: 828667 | D119: 75333 | E119: 6027 | F119: 8211333 | G119: 3612987 | T119: 2009 | U119: 12
A120: 110 | B120: 2010-01-01 | C120: 753333 | D120: 75333 | E120: 5524 | F120: 8286667 | G120: 3618511 | T120: 2010 | U120: 1
A121: 111 | B121: 2010-02-01 | C121: 678000 | D121: 75333 | E121: 5022 | F121: 8362000 | G121: 3623533 | T121: 2010 | U121: 2
A122: 112 | B122: 2010-03-01 | C122: 602667 | D122: 75333 | E122: 4520 | F122: 8437333 | G122: 3628053 | T122: 2010 | U122: 3
A123: 113 | B123: 2010-04-01 | C123: 527333 | D123: 75333 | E123: 4018 | F123: 8512667 | G123: 3632071 | T123: 2010 | U123: 4
A124: 114 | B124: 2010-05-01 | C124: 452000 | D124: 75333 | E124: 3516 | F124: 8588000 | G124: 3635587 | T124: 2010 | U124: 5
A125: 115 | B125: 2010-06-01 | C125: 376667 | D125: 75333 | E125: 3013 | F125: 8663333 | G125: 3638600 | T125: 2010 | U125: 6
A126: 116 | B126: 2010-07-01 | C126: 301333 | D126: 75333 | E126: 2511 | F126: 8738667 | G126: 3641111 | T126: 2010 | U126: 7
A127: 117 | B127: 2010-08-01 | C127: 226000 | D127: 75333 | E127: 2009 | F127: 8814000 | G127: 3643120 | T127: 2010 | U127: 8
A128: 118 | B128: 2010-09-01 | C128: 150667 | D128: 75333 | E128: 1507 | F128: 8889333 | G128: 3644627 | T128: 2010 | U128: 9
A129: 119 | B129: 2010-10-01 | C129: 75333 | D129: 75333 | E129: 1004 | F129: 8964667 | G129: 3645631 | T129: 2010 | U129: 10
A130: 120 | B130: 2010-11-01 | C130: 0 | D130: 75333 | E130: 502 | F130: 9040000 | G130: 3646133 | T130: 2010 | U130: 11
T131: 2010 | U131: 12
T132: 2011 | U132: 1
T133: 2011 | U133: 2
T134: 2011 | U134: 3
T135: 2011 | U135: 4
T136: 2011 | U136: 5
T137: 2011 | U137: 6
T138: 2011 | U138: 7
B139: =IF(A139="","",IF(U139="","錯誤的日期",DATE(T139,U139,1))) ->  | D139: =IF(A139="","",$F$7) ->  | T139: 2011 | U139: 8
A140: =IF(AND(A139<$F$4*12,A139<>""),A139+1,"") ->  | C140: =IF(A140="","",C139-D140) ->  | E140: =IF(A140="","",C139*$D$4/12) ->  | F140: =IF(A140="","",F139+D140) ->  | G140: =IF(A140="","",G139+E140) ->  | T140: =IF(U139=12,T139+1,T139) -> 2011 | U140: =IF(U139=12,1,U139+1) -> 9
T141: 2011 | U141: 10
T142: 2011 | U142: 11
T143: 2011 | U143: 12
T144: 2012 | U144: 1
T145: 2012 | U145: 2
T146: 2012 | U146: 3
T147: 2012 | U147: 4
T148: 2012 | U148: 5
T149: 2012 | U149: 6
T150: 2012 | U150: 7
T151: 2012 | U151: 8
T152: 2012 | U152: 9
T153: 2012 | U153: 10
T154: 2012 | U154: 11
T155: 2012 | U155: 12
T156: 2013 | U156: 1
T157: 2013 | U157: 2
T158: 2013 | U158: 3
T159: 2013 | U159: 4
T160: 2013 | U160: 5
T161: 2013 | U161: 6
T162: 2013 | U162: 7
T163: 2013 | U163: 8
T164: 2013 | U164: 9
T165: 2013 | U165: 10
T166: 2013 | U166: 11
T167: 2013 | U167: 12
T168: 2014 | U168: 1
T169: 2014 | U169: 2
T170: 2014 | U170: 3
T171: 2014 | U171: 4
T172: 2014 | U172: 5
T173: 2014 | U173: 6
T174: 2014 | U174: 7
T175: 2014 | U175: 8
T176: 2014 | U176: 9
T177: 2014 | U177: 10
T178: 2014 | U178: 11
T179: 2014 | U179: 12
T180: 2015 | U180: 1
T181: 2015 | U181: 2
T182: 2015 | U182: 3
T183: 2015 | U183: 4
T184: 2015 | U184: 5
T185: 2015 | U185: 6
T186: 2015 | U186: 7
T187: 2015 | U187: 8
T188: 2015 | U188: 9
T189: 2015 | U189: 10
T190: 2015 | U190: 11
T191: 2015 | U191: 12
T192: 2016 | U192: 1
T193: 2016 | U193: 2
T194: 2016 | U194: 3
T195: 2016 | U195: 4
T196: 2016 | U196: 5
T197: 2016 | U197: 6
T198: 2016 | U198: 7
T199: 2016 | U199: 8
T200: 2016 | U200: 9
T201: 2016 | U201: 10
... 1559 more rows
